Cogmind - Beta 9.6 @@@ ROGUE MODE // 2020.07.01 @ 15:49:34 Player: Granite Result: Destroyed by P-80 Master with Gamma Rifle Performance ------------- Evolutions (8) 4000 Regions Visited (15) 3000 Robots Destroyed (43) 215 Value Destroyed (1034) 1034 Prototype IDs (27) 540 Alien Tech Used (0) 0 Bonus (300) 300 TOTAL SCORE: 9089 Bonus ------- Aligned with FarCom 300 Cogmind --------- Core Integrity 0/1450 Matter 105/300 Energy 99/100 System Corruption 14% Temperature Cool (0) Movement Core (50) Location -2/Research Parts ------- > --- POWER (4) -------- (None) > --- PROPULSION (6) --- (None) > --- UTILITY (9) ------ Enhanced Optical Array Improved Core Analyzer > --- WEAPON (4) ------- (None) > --- INVENTORY (4) ---- (None) Peak State ------------ > --- POWER ------------ Micro Fission Core Light Antimatter Reactor Light Antimatter Reactor > --- PROPULSION ------- Xenon Bombardment Thruster Nuclear Pulse Thruster Nuclear Pulse Array Field Propulsion Array > --- UTILITY ---------- Advanced Heat Sink Small Storage Unit Enhanced Optical Array Improved Maneuvering Thrusters Phase Shifter Force Field Improved Hacking Suite System Shield Improved System Shield > --- WEAPON ----------- Quantum Rifle Mass Driver > --- INVENTORY -------- Xenon Bombardment Thruster Power Amplifier Advanced Transmission Jammer Advanced ECM Suite System Backup Module [Rating: 109] Favorites ----------- Power Ion Engine Engine Ion Engine Power Core Micro Nuclear Core Reactor Light Antimatter Reactor Propulsion Xenon Bombardment Thruster Treads Advanced Medium Treads Leg Aluminum Leg Hover Unit Combat Airjet Flight Unit Xenon Bombardment Thruster Utility Small Storage Unit Device Advanced Heat Sink Storage Small Storage Unit Processor Enhanced Optical Array Hackware System Shield Protection Improved Propulsion Shielding Weapon Battle Cannon Energy Gun Small Laser Energy Cannon Advanced Plasma Cannon Ballistic Gun Heavy Machine Gun Ballistic Cannon Battle Cannon Launcher Mini Grenade Launcher Special Weapon Plasma Cutter Impact Weapon Great Maul Slashing Weapon Katana Build | -11 -10 -10 -9 -9 -9 -8 -8 -7 -6 -5 -4 -4 -4 -3 -2 ------- Run | Scr Mat Min Mat Min Exi Min Mat Fac Fac Fac Fac Ext Cet Res Res Slots Evolved 16 | . . . 2 . . . 2 2 2 2 2 . . 2 2 Power 3 | . . . . . . . 1 . . 1 . . . 1 . Propulsion 4 | . . . 2 . . . . . . 1 1 . . . . Utility 7 | . . . . . . . 1 2 2 . 1 . . 1 . Weapon 2 | . . . . . . . . . . . . . . . 2 Parts Attached 136 | 6 5 3 15 5 . 2 20 14 16 14 14 1 2 12 7 Power 23 | 1 . . 1 . . . 5 2 5 5 1 1 . 1 1 Engine 10 | 1 . . 1 . . . 5 2 1 . . . . . . Core 9 | . . . . . . . . . 4 5 . . . . . Reactor 4 | . . . . . . . . . . . 1 1 . 1 1 Propulsion 30 | 2 1 2 6 3 . . 2 5 . 2 2 . . 2 3 Treads 2 | . . . . . . . 1 . . . . . . . 1 Leg 11 | 2 1 2 2 . . . 1 1 . . . . . . 2 Wheel . | . . . . . . . . . . . . . . . . Hover 1 | . . . . 1 . . . . . . . . . . . Flight 16 | . . . 4 2 . . . 4 . 2 2 . . 2 . Utility 51 | 1 2 . 3 1 . 1 4 6 6 6 9 . 2 8 2 Device 27 | . . . 1 1 . 1 . 2 3 3 6 . 2 7 1 Storage 8 | 1 1 . 2 . . . 2 1 . . 1 . . . . Processor 4 | . . . . . . . 1 2 . . . . . . 1 Hackware 4 | . . . . . . . 1 1 . 1 . . . 1 . Protection 8 | . 1 . . . . . . . 3 2 2 . . . . Artifact . | . . . . . . . . . . . . . . . . Weapon 32 | 2 2 1 5 1 . 1 9 1 5 1 2 . . 1 1 Energy Gun 6 | 1 2 1 . . . . . . . . . . . 1 1 Energy Cannon 1 | . . . . . . . . . . 1 . . . . . Ballistic Gun 4 | 1 . . . . . . 1 . 2 . . . . . . Ballistic Cannon 10 | . . . 3 . . 1 1 1 3 . 1 . . . . Launcher 5 | . . . 2 1 . . 2 . . . . . . . . Special Weapon 1 | . . . . . . . . . . . 1 . . . . Impact Weapon 2 | . . . . . . . 2 . . . . . . . . Slashing Weapon 3 | . . . . . . . 3 . . . . . . . . Piercing Weapon . | . . . . . . . . . . . . . . . . Special Melee Weapon . | . . . . . . . . . . . . . . . . Unidentified Prototypes 2 | . . . . . . . 1 . . . . . . 1 . Parts Lost 47 | . 2 1 1 . . 2 15 . . 3 . 1 . 17 5 Power 10 | . . . . . . . 5 . . 1 . . . 3 1 Propulsion 13 | . 1 . 1 . . . 5 . . . . . . 5 1 Utility 14 | . . . . . . 1 2 . . 1 . . . 8 2 Weapon 10 | . 1 1 . . . 1 3 . . 1 . 1 . 1 1 Highest Loss Streak 16 | . 2 1 1 . . 2 11 . . 1 . 1 . 16 3 Average Slot Usage (%) 84 | . 96 99 99 85 100 88 84 61 93 95 90 88 84 66 19 Engine 7 | . 14 14 11 11 11 11 15 8 4 4 . . . . . Core 3 | . . . . . . . . . 8 11 10 7 5 3 . Reactor 1 | . . . . . . . . . . . 4 7 10 6 2 Leg 3 | . 28 28 12 . . . . 3 . . . . . . 4 Hover 2 | . . . . 2 11 11 8 . . . . . . . . Flight 19 | . . . 31 35 33 33 15 7 26 25 22 21 21 14 . Device 7 | . . . 2 4 11 5 . 6 8 12 17 21 21 16 2 Storage 7 | . 17 14 19 11 11 11 8 3 6 5 4 5 5 3 . Processor 7 | . . . . . . . 9 17 13 9 5 5 5 4 5 Hackware 6 | . . . . . . . 8 7 6 9 10 10 10 11 3 Protection 2 | . 7 14 . . . . . . 10 1 3 . . . . Energy Gun 1 | . 13 13 . . . . . . . . . . . . . Ballistic Gun 1 | . 14 14 . . . . . . . 5 2 . . . . Ballistic Cannon 3 | . . . 13 6 . 9 2 4 5 3 2 5 5 3 . Launcher 2 | . . . 7 15 22 7 . . . . . . . . . Impact Weapon 1 | . . . . . . . 7 . . . . . . . . Slashing Weapon 1 | . . . . . . . 7 . . . . . . . . Naked Turns . | . . . . . . . . . . . . . . . . Heaviest Build 55 | 12 28 27 36 15 13 21 22 14 31 40 51 48 53 55 29 Greatest Support 67 | 20 20 20 40 22 22 22 22 28 37 51 67 58 58 65 60 Greatest Overweight (x) 3 | 3 2 1 1 . . . . 1 1 . 1 . . 1 . Average Overweight (x) . | . . 1 . . . . . . . . . . . . . Largest Inventory Capacity 12 | 6 12 10 10 6 6 6 8 6 6 6 6 6 6 6 4 Average Capacity 6 | 5 9 10 7 6 6 6 6 5 6 6 5 6 6 5 4 Most Carried 10 | 4 9 10 10 6 6 4 8 6 6 6 6 6 6 6 4 Average Carried 5 | . 3 9 6 5 4 4 5 3 5 5 5 5 6 3 1 Final Capacity 10 | 6 10 10 6 6 6 6 4 6 6 6 6 6 6 4 4 Final Carried 10 | . 8 10 6 6 4 4 4 6 6 5 6 6 6 2 . Class Distribution -------------------- 50% | Mutant 24% | Sprinter 13% | Hacker-Sprinter 9% | Generator-Sprinter Dominant Class ---------------- Mutant | -10/Materials Mutant | -10/Mines Sprinter | -9/Materials Mutant | -9/Mines Mutant | -9/Exiles Mutant | -8/Mines Mutant | -8/Materials Mutant | -7/Factory Sprinter | -6/Factory Hacker-Sprinter | -5/Factory Hacker-Sprinter | -4/Factory Generator-Sprinter | -4/Extension Generator-Sprinter | -4/Cetus Hacker-Sprinter | -3/Research Mutant | -2/Research Resources | -11 -10 -10 -9 -9 -9 -8 -8 -7 -6 -5 -4 -4 -4 -3 -2 ----------- Run | Scr Mat Min Mat Min Exi Min Mat Fac Fac Fac Fac Ext Cet Res Res Matter Collected 1567 | 223 177 74 38 184 . 51 140 81 186 112 158 31 . . 112 Remotely . | . . . . . . . . . . . . . . . . Salvage Created 1161 | . 259 180 181 20 . 72 239 100 79 . . 31 . . . Parts 71 | . 18 6 15 8 . 2 12 5 3 . . 2 . . . Haulers Intercepted . | . . . . . . . . . . . . . . . . Recyclers Shooed 2 | . 1 1 . . . . . . . . . . . . . Parts Field Recycled . | . . . . . . . . . . . . . . . . Retrieved Matter . | . . . . . . . . . . . . . . . . Parts Self-Destructed . | . . . . . . . . . . . . . . . . Prevented . | . . . . . . . . . . . . . . . . Kills | -11 -10 -10 -9 -9 -9 -8 -8 -7 -6 -5 -4 -4 -4 -3 -2 ------- Run | Scr Mat Min Mat Min Exi Min Mat Fac Fac Fac Fac Ext Cet Res Res Combat Hostiles Destroyed 30 | . 8 2 9 3 . 2 4 . 2 . . . . . . Melee 3 | . . . . . . . 3 . . . . . . . . Guns 11 | . 8 2 . . . . . . 1 . . . . . . Cannons 4 | . . . 2 . . 1 . . 1 . . . . . . AOE 12 | . . . 7 3 . 1 1 . . . . . . . . Classes Destroyed 10 | . 3 2 3 . . 1 . . 1 . . . . . . Worker 4 | . . . 1 . . . 2 1 . . . . . . . Builder 2 | . . . 2 . . . . . . . . . . . . Tunneler 1 | . . 1 . . . . . . . . . . . . . Recycler 3 | . . 1 1 . . . . 1 . . . . . . . Watcher 3 | . 1 . . . . . . . 1 . . 1 . . . Swarmer 13 | . 4 . 6 3 . . . . . . . . . . . Grunt 10 | . 4 2 2 . . 1 1 . . . . . . . . Sentry 4 | . . . 1 . . . 3 . . . . . . . . Hunter 1 | . . . . . . 1 . . . . . . . . . Programmer 2 | . . . . . . . . . 2 . . . . . . Best Kill Streak 6 | . 3 2 6 3 . 2 1 1 1 . . 1 . . . Combat Bots Only 4 | . 3 2 4 3 . 2 1 . 1 . . . . . . Max Kills in Single Turn 4 | . 2 1 4 3 . 1 1 1 1 . . 1 . . . Gunslinging 1 | . 1 . . . . . . . . . . . . . . Exploded 3 | . . . 2 3 . 1 1 . . . . . . . . Melee 1 | . . . . . . . 1 . . . . . . . . Uniques/NPCs Destroyed . | . . . . . . . . . . . . . . . . Combat | -11 -10 -10 -9 -9 -9 -8 -8 -7 -6 -5 -4 -4 -4 -3 -2 -------- Run | Scr Mat Min Mat Min Exi Min Mat Fac Fac Fac Fac Ext Cet Res Res Damage Taken 8335 | . 483 65 157 44 . 619 1237 . 170 491 . 293 . 2257 2519 Core 3351 | . 101 . 18 12 . 102 345 . 30 86 . 117 . 1081 1459 Absorbed by Shields 149 | . . . . . . . . . . . . . . 149 . Core Remaining (%) 72 | 100 . 59 . . . 67 37 100 96 91 . . 89 16 . Volleys Fired 99 | . 37 9 9 5 . 7 2 2 12 5 3 5 . . 3 Largest 2 | . 2 2 2 2 . 1 1 1 2 2 2 2 . . 1 Hottest 128 | . 76 76 88 60 . 39 23 39 69 128 77 77 . . 94 Shots Fired 170 | . 73 16 16 7 . 7 2 2 18 10 6 10 . . 3 Gun 105 | . 73 16 . . . . 2 . 6 5 . . . . 3 Cannon 45 | . . . 8 3 . 7 . 2 12 5 3 5 . . . Launcher 12 | . . . 8 4 . . . . . . . . . . . Special 8 | . . . . . . . . . . . 3 5 . . . Kinetic 102 | . 37 9 8 3 . 7 2 2 18 8 3 5 . . . Thermal 56 | . 36 7 . . . . . . . 2 3 5 . . 3 Explosive 12 | . . . 8 4 . . . . . . . . . . . Electromagnetic . | . . . . . . . . . . . . . . . . Robot Hit Streak 14 | . 12 10 8 5 . 2 1 3 10 14 . 2 . . 3 Robot Miss Streak 6 | . 6 1 1 3 . 4 2 . 1 1 2 2 . . 1 Penetration Max . | . . . . . . . . . . . . . . . . Secondary Targets 2 | . 2 . . . . . . . . . . . . . . Max Gunslinging Chain 1 | . 1 . . . . . . . . . . . . . . Shots Hit Robots 110 | . 41 13 6 3 . 4 13 2 14 7 . 5 . . 2 Core Hits 68 | . 16 5 19 4 . 3 4 2 7 2 . 4 . 1 1 Critical Hits 2 | . 1 1 . . . . . . . . . . . . . Critical Kills 2 | . 1 1 . . . . . . . . . . . . . Critical Parts Destroyed . | . . . . . . . . . . . . . . . . Melee Attacks 13 | . . . . . . . 13 . . . . . . . . Impact 11 | . . . . . . . 11 . . . . . . . . Slashing 2 | . . . . . . . 2 . . . . . . . . Piercing . | . . . . . . . . . . . . . . . . Sneak Attacks 2 | . . . . . . . 2 . . . . . . . . Combat Hostiles . | . . . . . . . . . . . . . . . . Follow-up Attacks 1 | . . . . . . . 1 . . . . . . . . Damage Inflicted 3065 | . 447 163 854 198 . 188 463 41 322 141 12 122 . 3 111 Guns 954 | . 447 163 . . . . 15 . 148 70 . . . . 111 Cannons 724 | . . . 204 64 . 71 . 41 174 71 . 99 . . . Explosions 901 | . . . 650 134 . 117 . . . . . . . . . Melee 448 | . . . . . . . 448 . . . . . . . . Ramming 3 | . . . . . . . . . . . . . . 3 . Kinetic 1208 | . 211 75 204 64 . 71 15 41 322 106 . 99 . . . Thermal 622 | . 236 88 . . . 117 . . . 35 12 23 . . 111 Explosive 784 | . . . 650 134 . . . . . . . . . . . Electromagnetic . | . . . . . . . . . . . . . . . . Impact 420 | . . . . . . . 420 . . . . . . . . Slashing 28 | . . . . . . . 28 . . . . . . . . Piercing . | . . . . . . . . . . . . . . . . Highest Corruption 14 | . . . . . . . . . 2 2 . . . 7 14 Average Corruption 3 | . . . . . . . . . 1 1 . . . 2 9 Corruption Purged 3 | . . . . . . . . . 2 1 . . . . . Effects 16 | . . . . . . . . . 2 3 . . . 2 9 Message Errors 3 | . . . . . . . . . . 1 . . . . 2 Matter Fused 2 | . . . . . . . . . . . . . . 1 1 Heat Flow Errors 2 | . . . . . . . . . 2 . . . . . . Energy Discharges 1 | . . . . . . . . . . . . . . 1 . Parts Rejected 2 | . . . . . . . . . . . . . . . 2 Data Loss (minor) 2 | . . . . . . . . . . 2 . . . . . Data Loss (major) 1 | . . . . . . . . . . . . . . . 1 Misdirections 3 | . . . . . . . . . . . . . . . 3 Overload Shots . | . . . . . . . . . . . . . . . . Overflow Damage 192 | . . . 94 22 . . 66 . 10 . . . . . . Projectiles 32 | . . . . 22 . . . . 10 . . . . . . Explosions 94 | . . . 94 . . . . . . . . . . . . Melee 66 | . . . . . . . 66 . . . . . . . . Knockbacks 5 | . . . . 1 . 1 1 . 1 . . 1 . . . Impact 1 | . . . . . . . 1 . . . . . . . . Kinetic 4 | . . . . 1 . 1 . . 1 . . 1 . . . Secondary . | . . . . . . . . . . . . . . . . Self-Inflicted Damage 99 | . . . 22 24 . 52 . . . . . . . 1 . Shots 3 | . . . 1 1 . 1 . . . . . . . . . Rammed 1 | . . . . . . . . . . . . . . 1 . Targets Rammed 1 | . . . . . . . . . . . . . . 1 . Kicked . | . . . . . . . . . . . . . . . . Crushed . | . . . . . . . . . . . . . . . . Highest Temperature 193 | . 96 42 45 12 . 17 9 . 193 116 . . . . 48 Average Temperature 35 | . 36 15 18 6 . 8 5 . 35 53 . . . . 25 Received Heat Transfer 1209 | . 174 36 45 . . 135 597 . 21 81 . . . 48 72 Siege Activations . | . . . . . . . . . . . . . . . . Robots Corrupted . | . . . . . . . . . . . . . . . . Combat Hostiles . | . . . . . . . . . . . . . . . . Parts Fried . | . . . . . . . . . . . . . . . . Impact Corruptions 2 | . . . . . . . 2 . . . . . . . . Robots Melted . | . . . . . . . . . . . . . . . . Combat Hostiles . | . . . . . . . . . . . . . . . . Parts Melted . | . . . . . . . . . . . . . . . . Heat Transferred 1204 | . 560 222 . . . 150 . . . 50 37 74 . . 111 Parts Sabotaged . | . . . . . . . . . . . . . . . . Parts Stolen . | . . . . . . . . . . . . . . . . Parts Stripped . | . . . . . . . . . . . . . . . . Power Chain Reactions . | . . . . . . . . . . . . . . . . Missiles Intercepted . | . . . . . . . . . . . . . . . . Alert | -11 -10 -10 -9 -9 -9 -8 -8 -7 -6 -5 -4 -4 -4 -3 -2 ------- Run | Scr Mat Min Mat Min Exi Min Mat Fac Fac Fac Fac Ext Cet Res Res Peak Influence 376 | . 179 83 376 173 . 84 43 23 71 72 85 80 59 213 81 Average Influence 41 | . 99 61 150 120 . 36 15 14 25 29 45 32 45 79 36 Maximum Alert Level 1 | . . . 1 . . . . . . . . . . 1 . Low Security (%) 97 | 100 100 100 49 100 . 100 100 100 100 100 100 100 100 99 100 Level 1 2 | . . . 50 . . . . . . . . . . . . Level 2 . | . . . . . . . . . . . . . . . . Level 3 . | . . . . . . . . . . . . . . . . Level 4 . | . . . . . . . . . . . . . . . . Level 5 . | . . . . . . . . . . . . . . . . High Security . | . . . . . . . . . . . . . . . . Max Security . | . . . . . . . . . . . . . . . . Squads Dispatched 15 | . 2 . 1 . . . 4 . 2 2 . . . 1 3 Investigation 4 | . 1 . . . . . 2 . . 1 . . . . . Extermination 5 | . . . . . . . . . 2 1 . . . 1 1 Reinforcement 6 | . 1 . 1 . . . 2 . . . . . . . 2 Assault . | . . . . . . . . . . . . . . . . Garrison . | . . . . . . . . . . . . . . . . Intercept . | . . . . . . . . . . . . . . . . Construction Impeded 1 | . . . 1 . . . . . . . . . . . . Haulers Reinforced . | . . . . . . . . . . . . . . . . Stealth | -11 -10 -10 -9 -9 -9 -8 -8 -7 -6 -5 -4 -4 -4 -3 -2 --------- Run | Scr Mat Min Mat Min Exi Min Mat Fac Fac Fac Fac Ext Cet Res Res Distress Signals 12 | . 1 . . . . . 2 . . 2 . . 1 3 3 Communications Jammed . | . . . . . . . . . . . . . . . . Distress Signals . | . . . . . . . . . . . . . . . . Times Spotted 202 | . 15 2 12 19 . 10 25 . 8 27 1 9 5 41 28 Peak Tracking Total 20 | . 4 2 5 20 . 6 16 . 2 11 1 6 5 12 14 Tactical Retreats 30 | . . . 1 1 . 4 2 . 1 6 . . . 9 6 Traps | -11 -10 -10 -9 -9 -9 -8 -8 -7 -6 -5 -4 -4 -4 -3 -2 ------- Run | Scr Mat Min Mat Min Exi Min Mat Fac Fac Fac Fac Ext Cet Res Res Traps Triggered 7 | . 1 . . . . . 1 . 2 2 . . . 1 . Indirectly . | . . . . . . . . . . . . . . . . Trap Hack Attempts . | . . . . . . . . . . . . . . . . Triggered . | . . . . . . . . . . . . . . . . Disarmed . | . . . . . . . . . . . . . . . . Reprogrammed 6 | . . . . . . . 6 . . . . . . . . Reused 1 | . . . . . . . 1 . . . . . . . . Traps Extracted . | . . . . . . . . . . . . . . . . Installed . | . . . . . . . . . . . . . . . . Triggered 1 | . . . . . . . 1 . . . . . . . . Machines | -11 -10 -10 -9 -9 -9 -8 -8 -7 -6 -5 -4 -4 -4 -3 -2 ---------- Run | Scr Mat Min Mat Min Exi Min Mat Fac Fac Fac Fac Ext Cet Res Res Machines Disabled 3 | . . . 2 . . 1 . . . . . . . . . Max in Single Turn 1 | . . . 1 . . 1 . . . . . . . . . Machines Sabotaged . | . . . . . . . . . . . . . . . . Garrisons Compromised . | . . . . . . . . . . . . . . . . Overloaded Fab Kills . | . . . . . . . . . . . . . . . . Fab Network Shutdowns . | . . . . . . . . . . . . . . . . Hacking | -11 -10 -10 -9 -9 -9 -8 -8 -7 -6 -5 -4 -4 -4 -3 -2 --------- Run | Scr Mat Min Mat Min Exi Min Mat Fac Fac Fac Fac Ext Cet Res Res Machines Accessed 42 | . 3 . 4 . 5 . 7 1 4 5 7 . . 5 1 Terminals 23 | . 2 . 1 . . . 6 1 1 3 3 . . 5 1 Fabricators . | . . . . . . . . . . . . . . . . Repair Stations 5 | . . . 1 . . . . . 2 1 1 . . . . Recycling Units 8 | . 1 . 2 . . . 1 . 1 1 2 . . . . Scanalyzers 1 | . . . . . . . . . . . 1 . . . . Garrison Access . | . . . . . . . . . . . . . . . . Total Hacks 148 | . 8 . 10 . 42 . 23 2 9 15 23 . . 14 2 Successful 93 | . 4 . 7 . 42 . 14 . 4 4 13 . . 5 . Failed 55 | . 4 . 3 . . . 9 2 5 11 10 . . 9 2 Catastrophic 11 | . 1 . 1 . . . 1 . 1 3 1 . . 2 1 Database Lockouts . | . . . . . . . . . . . . . . . . Manual 67 | . 7 . 2 . 4 . 14 2 3 8 12 . . 13 2 Terminals 77 | . 6 . 2 . . . 21 2 3 12 15 . . 14 2 Fabricators . | . . . . . . . . . . . . . . . . Repair Stations 10 | . . . 2 . . . . . 4 1 3 . . . . Recycling Units 16 | . 2 . 6 . . . 2 . 2 2 2 . . . . Scanalyzers 3 | . . . . . . . . . . . 3 . . . . Garrison Access . | . . . . . . . . . . . . . . . . Terminal Hacks 66 | . . . . . 42 . 8 . . 3 8 . . 5 . Record 44 | . . . . . 41 . 1 . . 1 . . . 1 . Prototype ID Bank 1 | . . . . . . . 1 . . . . . . . . Level Access Points 3 | . . . . . . . 1 . . . 1 . . 1 . Emergency Access Points 2 | . . . . . . . . . . . 2 . . . . Alert Level 3 | . . . . . . . 1 . . . 2 . . . . Unreport Threat 2 | . . . . . . . 1 . . . 1 . . . . Locate Traps 3 | . . . . . . . 1 . . . 1 . . 1 . Reprogram Traps 1 | . . . . . . . 1 . . . . . . . . Reinforcement Status 1 | . . . . . . . . . . 1 . . . . . Recall Reinforcements 1 | . . . . . . . 1 . . . . . . . . Recall Assault 1 | . . . . . . . . . . . . . . 1 . Zone Layout 3 | . . . . . . . . . . 1 1 . . 1 . EX-Prototype ID Bank 1 | . . . . . 1 . . . . . . . . . . Fabricator Hacks . | . . . . . . . . . . . . . . . . Repair Station Hacks 5 | . . . 1 . . . . . 2 . 2 . . . . Scan Component 3 | . . . 1 . . . . . 1 . 1 . . . . Repair 2 | . . . . . . . . . 1 . 1 . . . . Recycling Unit Hacks 12 | . 1 . 5 . . . 2 . 2 1 1 . . . . Process 1 | . . . 1 . . . . . . . . . . . . Report Inventory 7 | . 1 . 2 . . . 1 . 1 1 1 . . . . Retrieve Matter 1 | . . . 1 . . . . . . . . . . . . Retrieve Components 3 | . . . 1 . . . 1 . 1 . . . . . . Scanalyzer 2 | . . . . . . . . . . . 2 . . . . Insert Component 1 | . . . . . . . . . . . 1 . . . . Analyze 1 | . . . . . . . . . . . 1 . . . . Garrison Access Hacks . | . . . . . . . . . . . . . . . . Unauthorized Hacks 8 | . 3 . 1 . . . 4 . . . . . . . . Terminals 7 | . 2 . 1 . . . 4 . . . . . . . . Botnet 6 | . 2 . 1 . . . 3 . . . . . . . . Operators 1 | . . . . . . . 1 . . . . . . . . Fabricators . | . . . . . . . . . . . . . . . . Repair Stations . | . . . . . . . . . . . . . . . . Recycling Units 1 | . 1 . . . . . . . . . . . . . . Tunnel 1 | . 1 . . . . . . . . . . . . . . Scanalyzers . | . . . . . . . . . . . . . . . . Garrison Access . | . . . . . . . . . . . . . . . . Data Cores Recovered . | . . . . . . . . . . . . . . . . Used . | . . . . . . . . . . . . . . . . Hacking Detections 28 | . 2 . 2 . . . 4 1 3 5 5 . . 5 1 Full Trace Events . | . . . . . . . . . . . . . . . . Feedback Events . | . . . . . . . . . . . . . . . . Feedback Blocked . | . . . . . . . . . . . . . . . . Robot Schematics Acquired . | . . . . . . . . . . . . . . . . Robots Built . | . . . . . . . . . . . . . . . . Matter . | . . . . . . . . . . . . . . . . Time . | . . . . . . . . . . . . . . . . Total Robot Build Rating . | . . . . . . . . . . . . . . . . Part Schematics Acquired 1 | . . . . . . . . . . . 1 . . . . Parts Built . | . . . . . . . . . . . . . . . . Matter . | . . . . . . . . . . . . . . . . Time . | . . . . . . . . . . . . . . . . Total Part Build Rating . | . . . . . . . . . . . . . . . . Parts Repaired 2 | . . . . . . . . . 1 . 1 . . . . Time 32 | . . . . . . . . . 19 . 13 . . . . Parts Recycled . | . . . . . . . . . . . . . . . . Recycled Matter 6 | . . . 6 . . . . . . . . . . . . Retrieved Matter 6 | . . . 6 . . . . . . . . . . . . Retrieved Components 13 | . . . 3 . . . 9 . 1 . . . . . . Parts Scanalyzed 1 | . . . . . . . . . . . 1 . . . . Part Schematics Acquired 1 | . . . . . . . . . . . 1 . . . . Parts Damaged . | . . . . . . . . . . . . . . . . Bothacking | -11 -10 -10 -9 -9 -9 -8 -8 -7 -6 -5 -4 -4 -4 -3 -2 ------------ Run | Scr Mat Min Mat Min Exi Min Mat Fac Fac Fac Fac Ext Cet Res Res Used RIF Installer . | . . . . . . . . . . . . . . . . Robots Hacked . | . . . . . . . . . . . . . . . . Non-combat . | . . . . . . . . . . . . . . . . Combat . | . . . . . . . . . . . . . . . . Robot Hacks Applied . | . . . . . . . . . . . . . . . . Relay Couplers Released . | . . . . . . . . . . . . . . . . Robots Rewired . | . . . . . . . . . . . . . . . . Allies Hacked . | . . . . . . . . . . . . . . . . Hacks Repelled . | . . . . . . . . . . . . . . . . Allies | -11 -10 -10 -9 -9 -9 -8 -8 -7 -6 -5 -4 -4 -4 -3 -2 -------- Run | Scr Mat Min Mat Min Exi Min Mat Fac Fac Fac Fac Ext Cet Res Res Total Allies . | . . . . . . . . . . . . . . . . Largest Group . | . . . . . . . . . . . . . . . . Highest-Rated Group . | . . . . . . . . . . . . . . . . Highest-Rated Ally . | . . . . . . . . . . . . . . . . Total Orders . | . . . . . . . . . . . . . . . . Ally Attacks . | . . . . . . . . . . . . . . . . Total Damage . | . . . . . . . . . . . . . . . . Kills . | . . . . . . . . . . . . . . . . Allies Corrupted . | . . . . . . . . . . . . . . . . Allies Melted . | . . . . . . . . . . . . . . . . Intel | -11 -10 -10 -9 -9 -9 -8 -8 -7 -6 -5 -4 -4 -4 -3 -2 ------- Run | Scr Mat Min Mat Min Exi Min Mat Fac Fac Fac Fac Ext Cet Res Res Robot Analysis Total . | . . . . . . . . . . . . . . . . Derelict Logs Recovered 2 | . . . . 2 . . . . . . . . . . . Drone Launches . | . . . . . . . . . . . . . . . . Drone Recoveries . | . . . . . . . . . . . . . . . . Exploration | -11 -10 -10 -9 -9 -9 -8 -8 -7 -6 -5 -4 -4 -4 -3 -2 ------------- Run | Scr Mat Min Mat Min Exi Min Mat Fac Fac Fac Fac Ext Cet Res Res Turns Passed 9282 | 61 484 207 402 218 631 235 1931 497 1659 730 559 520 118 499 531 Spaces Moved 10557 | 38 244 115 339 404 782 251 1107 619 1657 1461 1083 765 62 963 667 Core 964 | 19 . . . . . . 20 357 . . . . . 132 436 Treads . | . . . . . . . . . . . . . . . . Legs 777 | 19 244 115 67 . . . 9 92 . . . . . . 231 Wheels . | . . . . . . . . . . . . . . . . Hover 2155 | . . . . 44 782 251 1078 . . . . . . . . Flight 6661 | . . . 272 360 . . . 170 1657 1461 1083 765 62 831 . Fastest Speed 28 | 50 120 150 31 31 80 80 50 31 31 28 28 31 31 31 50 Average Speed 50 | 112 141 150 49 38 80 80 79 58 31 30 29 31 31 34 74 Slowest Speed 200 | 200 180 150 150 80 80 80 130 130 111 31 114 31 31 117 120 Overloaded Moves . | . . . . . . . . . . . . . . . . Propulsion Burnouts . | . . . . . . . . . . . . . . . . Robots Hopped 29 | . . . . . . . . . 4 4 6 8 . 7 . Cave-ins Triggered . | . . . . . . . . . . . . . . . . Exploration Rate (%) 36 | 3 36 16 29 71 93 50 62 15 33 25 22 55 23 32 13 Regions Visited 15 Branch Regions 6 Pre-discovered Areas 2 | . 1 . . . 1 . . . . . . . . . . Known Exits Taken 3 | . . . . . . . 1 . . . . . 1 1 . Unknown Exits Taken 12 | 1 1 1 1 1 1 1 . 1 1 1 1 1 . . . Scrap Searched 4 | . . . . 3 . 1 . . . . . . . . . Spaces Dug 13 | . . . 10 . . . . . . . 3 . . . . Terrain Destroyed 129 | . . . 47 54 . 20 . . . 1 5 2 . . . Melee . | . . . . . . . . . . . . . . . . Projectile 9 | . . . . . . 1 . . . 1 5 2 . . . AOE 120 | . . . 47 54 . 19 . . . . . . . . . Actions | -11 -10 -10 -9 -9 -9 -8 -8 -7 -6 -5 -4 -4 -4 -3 -2 --------- Run | Scr Mat Min Mat Min Exi Min Mat Fac Fac Fac Fac Ext Cet Res Res Total 14282 | 56 308 133 558 459 789 276 2128 748 2781 1734 1306 1025 159 1121 701 Wait 3272 | 7 10 2 168 38 . 17 961 96 1051 236 180 257 96 140 13 Move 10487 | 37 243 114 338 403 781 250 1106 618 1648 1452 1070 750 61 949 667 Hop 26 | . . . . . . . . . 4 4 6 6 . 6 . Pick Up 136 | 6 12 4 12 5 3 . 19 16 13 11 19 3 . 5 8 Fast Attach . | . . . . . . . . . . . . . . . . Attach 76 | 6 3 1 4 3 . . 11 11 9 7 5 1 . 8 7 Detach 3 | . . . 1 . . . . . 2 . . . . . . Swap 60 | . 2 2 11 2 . 2 9 3 7 7 9 . 2 4 . Drop 78 | . 1 1 15 3 5 . 9 2 9 7 14 3 . 6 3 Fire 99 | . 37 9 9 5 . 7 2 2 12 5 3 5 . . 3 Melee 11 | . . . . . . . 11 . . . . . . . . Ram 1 | . . . . . . . . . . . . . . 1 . Kick . | . . . . . . . . . . . . . . . . Crush . | . . . . . . . . . . . . . . . . Escape Stasis 33 | . . . . . . . . . 26 5 . . . 2 . Rewire . | . . . . . . . . . . . . . . . . Trap . | . . . . . . . . . . . . . . . . Miscellaneous . | . . . . . . . . . . . . . . . . Route ------- -11/Scrapyard -10/Materials -10/Mines -9/Materials -9/Mines -9/Exiles (discovered 2 exits: [*Min x2]) -8/Mines -8/Materials (discovered 3 exits: *Fac x3) -7/Factory (discovered 2 exits: *Fac / Sto) -6/Factory -5/Factory -4/Factory (discovered 5 exits: Res x4 / *Ext) -4/Extension (discovered 2 exits: *Res / [*Cet]) -4/Cetus -3/Research (discovered 3 exits: *Res x3) -2/Research History --------- Turn | Location | Event 24 | -11/Scrapyard | Discovered new exit (range 16) 62 | -11/Scrapyard | Entered Materials 301 | -10/Materials | Build established: Mutant 498 | -10/Materials | Discovered new exit (range 14) 546 | -10/Materials | Entered Mines 644 | -10/Mines | Discovered new exit (range 6) 693 | -10/Mines | Found a hidden stash of uninstalled traps 753 | -10/Mines | Entered Materials 753 | -9/Materials | Evolved 2 slots: Propulsion x2 988 | -9/Materials | Discovered new exit (range 15) 1155 | -9/Materials | Entered Mines 1264 | -9/Mines | Assembled infested the area 1279 | -9/Mines | Learned Materials terminal intel 1281 | -9/Mines | A weapon hastily lodged in a ceiling crevice suddenly fell to the ground 1329 | -9/Mines | Met 8R-AWN 1370 | -9/Mines | Discovered new exit (range 5) 1373 | -9/Mines | Entered Exiles 1395 | -9/Exiles | Welcomed by 8R-AWN 1409 | -9/Exiles | Met EX-HEX 1459 | -9/Exiles | Met EX-DEC 1474 | -9/Exiles | Visited The Gauntlet 1581 | -9/Exiles | Met EX-BIN 1593 | -9/Exiles | Aligned with FarCom system 1594 | -9/Exiles | Given EX-Vault access code 1646 | -9/Exiles | Opened EX-Vault 1652 | -9/Exiles | Found Prototype Device 1655 | -9/Exiles | Found Prototype Device 1663 | -9/Exiles | Identified Cloak of Protection 1663 | -9/Exiles | Identified PSU Rigger 1680 | -9/Exiles | Warned to stay clear of 0b10 Research branches 1735 | -9/Exiles | Learned location of Zion (-6) 1774 | -9/Exiles | Discovered new exit (range 14) 1846 | -9/Exiles | Learned about 8R-AWN's background 1864 | -9/Exiles | Discovered new exit (range 14) 2004 | -9/Exiles | Left Exiles lab with Cloak of Protection 2004 | -9/Exiles | Entered Mines 2210 | -8/Mines | Discovered new exit (range 9) 2239 | -8/Mines | Entered Materials 2239 | -8/Materials | Evolved 2 slots: Power x1, Utility x1 2240 | -8/Materials | Loaded intel: 12 terminal locations 2461 | -8/Materials | Identified exit to Factory 4161 | -8/Materials | Core integrity fell below 50% 4170 | -8/Materials | Entered Factory 4170 | -7/Factory | Evolved 2 slots: Utility x2 4171 | -7/Factory | Identified exit to Storage 4191 | -7/Factory | Lost 11 parts (3p3n2u3w) 4274 | -7/Factory | Discovered new exit (range 22) 4667 | -7/Factory | Entered another Factory area 4667 | -6/Factory | Evolved 2 slots: Utility x2 4841 | -6/Factory | Build established: Sprinter 5631 | -6/Factory | Repaired Maneuvering Thrusters 6309 | -6/Factory | Discovered new exit (range 19) 6326 | -6/Factory | Entered another Factory area 6326 | -5/Factory | Evolved 2 slots: Power x1, Propulsion x1 6812 | -5/Factory | Build established: Hacker-Sprinter 7054 | -5/Factory | Discovered new exit (range 9) 7056 | -5/Factory | Entered another Factory area 7056 | -4/Factory | Evolved 2 slots: Propulsion x1, Utility x1 7091 | -4/Factory | Identified exit to Research 7438 | -4/Factory | Repaired Sml. Storage Unit 7611 | -4/Factory | Discovered new exit (range 15) 7615 | -4/Factory | Entered Extension 7637 | -4/Extension | Spotted B-86 Titan 7677 | -4/Extension | Build established: Generator-Sprinter 8089 | -4/Extension | Spotted B-86 Titan 8117 | -4/Extension | Discovered new exit (range 21) 8117 | -4/Extension | Discovered exit to Research (range 21) 8135 | -4/Extension | Entered Cetus 8236 | -4/Cetus | Spotted Cetus Guard 8239 | -4/Cetus | Spotted Cetus Guard 8241 | -4/Cetus | Spotted Cetus Guard 8241 | -4/Cetus | Spotted Cetus Guard 8246 | -4/Cetus | Discovered exit to Research (range 22) 8253 | -4/Cetus | Entered Research 8253 | -3/Research | Evolved 2 slots: Power x1, Utility x1 8259 | -3/Research | Spotted B-86 Titan 8308 | -3/Research | Spotted B-86 Titan 8533 | -3/Research | Identified exit to Research 8543 | -3/Research | Build established: Hacker-Sprinter 8698 | -3/Research | Core integrity fell below 50% 8720 | -3/Research | Lost 16 parts (3p5n7u1w) 8752 | -3/Research | Entered another Research area 8752 | -2/Research | Evolved 2 slots: Weapon x2 8784 | -2/Research | Spotted B-90 Cyclops 8989 | -2/Research | Build established: Mutant 9163 | -2/Research | System corruption reached 10% 9209 | -2/Research | Lost 3 parts (1p1n1u) 9232 | -2/Research | Core integrity fell below 50% 9266 | -2/Research | Core integrity fell below 20% 9283 | -2/Research | Destroyed by P-80 Master with Gamma Rifle Last Messages --------------- 09202_ ALERT: Hostiles spotted, dispatching reinforcements to Terminal R012. 09218_ Subatomic Condenser disabled. 09228_ System Shield destroyed. 09229_ P-80 Master resets A-15 Conveyor, system corruption cleaned. 09231_ K-01 Serf collects debris. 09237_ Acquired Adv. Medium Treads. 09239_ K-01 Serf collects debris. 09244_ U-05 Engineer lays Concrete. 09247_ K-01 Serf destroyed. 09254_ System corrupted: Adv. Medium Treads rejected. 09262_ Penetrated by Slug. 09264_ Slug penetrates U-05 Engineer. 09264_ U-05 Engineer destroyed. 09264_ Slug penetrates H-88 Terminator. 09265_ Acquired 21 matter. 09265_ Slug penetrates Wall. 09265_ Penetrated by Slug. 09274_ X0X8PW2C<1ROE>2:O0JVH1>6PYZQWIVN 09274_ Slug penetrates Wall. Map ----- +----------------------------------------------------+ | ??????????????????????????????????????????????# | | ??????????????????????????????????????????????##"# | | ????????????????????????????????????????????????# | | ????????????????????????????????????????????????# | | ?????????????????????#??????????????????????????# | | ???????????????????### ##???????????????????????# | | ???????????????????# ######?????????????????# | | ???????????????????# ################### | | ???????????????????+ " | | ???????????????????# = =! #### | | ??????????????????????????# | * #??## | | ??????????????????????????# ! #???? | | ??????????????????????????# ##### | | ??????????????????????????# | | ??????????????????????????#Y ##+############# | | ??????????????????????????# # #???????# | | ??????????????????????????# h# #???????# | | ??????????????????????????+ + #???????# | | ??????????????????????????# h # #???????# | | ??????????????????????????#h # #???????# | | ???????????????????########gp # #???????# | | ???????????????????# #g ########???????# | | ???????????????????# /pb +??????????????# | | ???????????????????# p#p #??????????????##### | | ???????????????????# g #??????????????????? | | ???????????????????# @#####??????????????????? | | ???????????????????# #??????????????????????? | | ???????????????????########??????????????????????? | | ?????????????????????????????????????????????????? | | ?????????????????????????????????????????????????? | | ?????????????????????????????????????????????????? | | | | | | | | | | | | | | | | | | | | | | | | | | | | | | | | | | | | | | | +----------------------------------------------------+ Best States ------------- Heat Dissipation 91 Energy Generation 61 Energy Capacity 380 Matter Stores 470 Matter Capacity 500 Sight Range 22 Robot Scan Range 10 Terrain Scan Density 10 ECM Strength 3 Jamming Range 16 Cloak Strength 5 Power Amplification 20 Additional Mass Support 9 Core Shielding 20 Propulsion Shielding 66 Phase Shifting 5 Evasion (%) 78 Targeting Accuracy 8 Melee Accuracy 6 Core Analysis 8 Recoil Reduction 1 Offensive Hacking 12 Defensive Hacking 22 Item Schematics ----------------- Prc. Energy Filter | -4/Factory | Scanalyzed Robot Schematics ------------------ None Fabricated ------------ Nothing Alien Tech Used ----------------- None Achievements -------------- Dangerous Findings Dodgeball, But With Guns GoHome() Hunted Respectable Loadout Slippery One Challenges ------------ None Game ------ Seed PropulsionGyrokineticBuckler Manual? 0 Play Time 04:10:59 Cumulative 20.5 hours Start 2020.07.01 @ 10:04:59 End 2020.07.01 @ 15:49:34 Sessions 1 Manual Loads 0 Difficulty Rogue Special Mode None Game No. 16 Rogue 16 Adventurer 0 Explorer 0 Win Type - Total 0 Types 0/0/0/0/0/0/0 Lore% 15 Gallery% 22 Achievement% 19 Wizard Run 0 Options --------- ASCII 0 Keyboard 0 Movement Mouse Keybinds 0 Fullscreen 1 Font 24/Smallcaps Map View 76x50 Tactical HUD 1 Map Filters NONE Filters NONE Steam 1 RUN: d61a4e78-88a3-49d7-90bb-ff9d3814f58e